bitfinex/quotes_SOLUSD_20250301
["timestamp","ask_amount","ask_price","bid_price","bid_amount"]
[1740848785804,89.20050823,140.0,139.93,8.1515]
[1740848786018,89.20050823,140.0,139.92,82.3]
[1740848786197,89.20050823,140.0,139.92,89.4464]
[1740848787020,6.88,139.99,139.92,89.4464]
[1740848787323,6.88,139.99,139.92,82.3]
[1740848788347,14.0238,139.99,139.92,89.4468]
[1740848788905,6.88,139.99,139.92,107.3141]
[1740848790429,6.88,139.99,139.92,25.0141]
[1740848790430,82.05760823,139.98,139.92,25.0141]
[1740848792106,82.05760823,139.98,139.92,27.0141]
[1740848792831,82.05760823,139.98,139.92,25.0141]
[1740848793020,6.88,139.99,139.94,25.0106]
[1740848793223,0.063,140.01,139.95,6.5414]
[1740848793423,0.063,140.01,139.96,1.6101]
[1740848794922,0.063,140.01,139.97,7.1443]
[1740848797120,0.063,140.01,139.97,25.0052]
[1740848797923,0.063,140.01,139.98,18.64964886]
[1740848798126,0.063,140.01,139.99,6.1554]
[1740848799216,0.063,140.01,140.0,8.7977]
[1740848799927,0.063,140.01,140.0,27.44734886]
[1740848800328,0.063,140.01,140.0,8.7977]
[1740848800515,0.063,140.01,139.99,6.1554]
[1740848800716,0.063,140.01,139.97,7.1443]
[1740848801125,81.47882743,140.06,139.97,7.1443]
[1740848801331,88.61912743,140.05,139.97,7.1443]
[1740848802537,0.063,140.01,139.97,7.1443]
[1740848805438,0.063,140.01,139.97,25.0052]
[1740848806144,0.063,140.01,139.97,107.3052]
[1740848807823,0.063,140.01,139.97,89.4443]
[1740848809442,0.063,140.01,139.97,107.3052]
[1740848811250,0.063,140.01,139.98,18.64964886]
[1740848811429,0.063,140.01,139.99,7.1433]
[1740848818251,0.063,140.01,140.0,18.64964886]
[1740848818659,0.063,140.01,140.0,20.64964886]
[1740848818956,0.063,140.01,140.0,27.79244886]
[1740848819670,0.063,140.01,140.0,7.1428]
[1740848821056,0.063,140.01,140.0,25.79244886]
[1740848821659,0.063,140.06,140.0,125.94954886]
[1740848821963,0.063,140.06,140.02,18.64964886]
[1740848823161,0.063,140.06,140.03,7.1413]
[1740848824949,0.063,140.06,140.0,7.1428]
[1740848826862,0.063,140.06,140.0,109.2999]
[1740848828952,0.063,140.06,140.0,89.4428]
[1740848829147,0.063,140.06,140.0,89.4728]
[1740848829459,1.6258,140.06,140.0,82.33]
[1740848829974,81.47882743,140.05,140.0,0.03]
[1740848830768,7.1408,140.04,140.0,0.03]
[1740848838177,88.61932743,140.05,140.0,0.03]
[1740848838384,81.47882743,140.05,140.0,0.03]
[1740848838556,0.063,140.06,140.0,100.97964886]
[1740848838759,0.063,140.06,140.01,2.0]
[1740848838966,0.063,140.06,140.01,4.0]
[1740848840180,0.063,140.06,140.03,18.64964886]
[1740848842259,0.063,140.06,140.04,7.1408]
[1740848843184,0.063,140.06,140.05,18.64964886]
[1740848844282,0.063,140.06,140.05,25.78994886]
[1740848844467,0.063,140.06,140.05,118.96994886]
[1740848846388,0.063,140.06,140.05,122.53159924]
[1740848849502,0.063,140.12,140.08,38.64964886]
[1740848849680,0.063,140.12,140.08,122.94964886]
[1740848850989,0.063,140.12,140.09,7.1382]
[1740848851170,0.063,140.12,140.11,20.0]
[1740848851591,0.063,140.12,140.11,38.64964886]
[1740848852489,0.063,140.12,140.11,120.94964886]
[1740848852890,0.063,140.16,140.12,18.64964886]
[1740848853185,0.063,140.16,140.14,18.64964886]
[1740848853784,0.063,140.16,140.14,100.94964886]
[1740848853990,0.063,140.16,140.14,104.94964886]
[1740848854166,0.0001,140.16,140.14,104.94964886]
[1740848855289,0.0001,140.16,140.15,7.1352]
[1740848855482,0.0001,140.16,140.15,116.94484886]
[1740848855679,0.0001,140.16,140.15,120.4424]
[1740848855901,0.0001,140.16,140.15,118.94484886]
[1740848856787,0.0001,140.16,140.15,96.2952]
[1740848857292,0.0001,140.16,140.13,24.9767]
[1740848858004,0.0001,140.16,140.13,7.1362]
[1740848859186,0.0001,140.16,140.13,24.9767]
[1740848859393,0.0001,140.16,140.14,18.64964886]
[1740848859769,0.0001,140.16,140.14,20.64964886]
[1740848859969,0.0001,140.16,140.14,22.64964886]
[1740848860170,0.0001,140.16,140.14,104.94964886]
[1740848860694,0.0001,140.16,140.14,102.94964886]
[1740848861191,0.0001,140.16,140.14,100.94964886]
[1740848861375,0.0001,140.16,140.15,7.1352]
[1740848862877,0.0001,140.16,140.13,24.9767]
[1740848863076,0.0001,140.16,140.13,7.1362]
[1740848875812,0.0001,140.16,140.14,20.64964886]
[1740848876382,0.0001,140.16,140.14,22.64964886]
[1740848876803,0.0001,140.16,140.15,7.1352]
[1740848877789,0.0001,140.16,140.15,13.9952]
[1740848879599,0.0001,140.16,140.15,96.2952]
[1740848879899,0.0001,140.16,140.15,256.24254946]
[1740848880204,0.0001,140.16,140.15,250.74484886]
[1740848882908,0.0001,140.16,140.15,252.74484886]
[1740848883115,0.0001,140.16,140.15,254.74484886]
[1740848884309,0.0001,140.16,140.15,250.74484886]
[1740848885414,0.0001,140.16,140.15,114.94484886]
[1740848886912,0.0001,140.16,140.15,118.94484886]
[1740848887094,0.0001,140.16,140.15,114.94484886]
[1740848887429,0.0001,140.16,140.15,96.2952]
[1740848887631,0.0001,140.16,140.15,7.1352]
[1740848887801,0.0001,140.16,140.14,7.1355]
[1740848888302,0.0001,140.16,140.13,0.03]
[1740848890843,81.47892743,140.16,140.13,0.03]
[1740848908341,81.47882743,140.15,140.13,0.03]
[1740848922945,0.0001,140.16,140.13,0.03]
[1740848923758,0.0001,140.16,140.13,20.67964886]
[1740848923960,0.0001,140.16,140.15,40.64964886]
[1740848924151,0.0001,140.16,140.15,48.41504886]
[1740848924346,0.0001,140.16,140.15,50.41504886]
[1740848924547,0.0001,140.16,140.15,59.04786048]
[1740848925345,0.0001,140.16,140.15,277.14786048]
[1740848925549,0.063,140.21,140.17,4.0]
[1740848925852,0.063,140.21,140.17,93.16]
[1740848926963,0.063,140.21,140.19,18.64964886]
[1740848928154,0.063,140.21,140.2,7.1326]
[1740848929945,0.063,140.21,140.19,7.1329]
[1740848933454,0.063,140.21,140.18,24.9677]
[1740848937369,0.063,140.21,140.19,18.64964886]
[1740848937768,83.14912743,140.27,140.19,100.94964886]
[1740848937972,0.063,140.27,140.2,2.0]
[1740848938782,0.063,140.27,140.22,18.64964886]
[1740848939666,0.063,140.27,140.21,89.4321]
[1740848939868,81.47882743,140.26,140.18,13.9736]
[1740848940174,81.47882743,140.25,140.18,7.1336]
[1740848940473,1.5876,140.24,140.18,7.1336]
[1740848940985,81.47882743,140.23,140.18,7.1336]
[1740848941556,81.47882743,140.23,140.17,7.1341]
[1740848941769,81.47882743,140.23,140.16,0.03]
[1740848942283,88.31882743,140.23,140.16,0.03]
[1740848942996,7.1316,140.22,140.16,0.03]
[1740848944996,81.47882743,140.21,140.16,0.03]
[1740848946692,83.06642743,140.24,140.16,0.03]
[1740848947190,83.06642743,140.24,140.17,18.64964886]
[1740848948175,83.06642743,140.24,140.18,7.1336]
[1740848948694,81.47882743,140.26,140.19,18.64964886]
[1740848949792,81.47882743,140.26,140.19,20.27014886]
[1740848950197,81.47882743,140.26,140.2,24.9642]
[1740848950568,81.54182743,140.26,140.2,24.9642]
[1740848956101,0.063,140.26,140.2,2.0]
[1740848956300,0.063,140.26,140.21,18.64964886]
[1740848957505,0.063,140.26,140.2,24.9642]
[1740848957796,0.063,140.26,140.21,18.64964886]
[1740848958500,0.063,140.26,140.22,24.9607]
[1740848958702,0.063,140.26,140.22,7.1316]
[1740848958890,81.54182743,140.26,140.2,7.1326]
[1740848959996,81.54182743,140.26,140.17,150.0753]
[1740848959997,81.47882743,140.25,140.17,150.0753]
[1740848960308,83.00982743,140.24,140.18,7.1336]
[1740848960601,90.14092743,140.24,140.17,139.374]
[1740848960783,90.14092743,140.24,140.17,132.24]
[1740848960983,81.47882743,140.23,140.16,0.03]
[1740848961697,81.47882743,140.23,140.16,7.1646]
[1740848962497,81.47882743,140.23,140.16,0.03]
[1740848965232,81.47882743,140.22,140.16,0.03]
[1740848965420,81.47882743,140.21,140.16,0.03]
[1740848966025,88.31882743,140.21,140.16,0.03]
[1740848966714,95.45092743,140.21,140.16,0.03]
[1740848968733,81.47882743,140.2,140.16,0.03]
[1740848969030,100.12847629,140.19,140.16,0.03]
[1740848969215,89.50682743,140.18,140.16,0.03]
[1740848969536,81.47882743,140.17,140.16,0.03]
[1740848969739,20.64964886,140.17,140.16,0.03]
[1740848969938,18.64964886,140.17,140.16,0.03]
[1740848970118,8.028,140.18,140.16,0.03]
[1740848971242,15.162,140.18,140.16,0.03]
[1740848971545,1.5601,140.21,140.16,0.03]
[1740848974345,18.64964886,140.2,140.16,0.03]
[1740848974538,83.0,140.18,140.16,0.03]
[1740848976425,90.1338,140.18,140.16,0.03]
[1740848976832,96.9738,140.18,140.16,0.03]
[1740848977130,90.1341,140.17,140.16,0.03]
[1740848980326,108.78374886,140.17,140.16,0.03]
[1740848980548,25.78374886,140.17,140.16,0.03]
[1740848981033,27.31424886,140.17,140.16,0.03]
[1740848989568,29.31424886,140.17,140.16,0.03]
[1740848991078,37.86444886,140.17,140.16,0.03]
[1740848991458,20.0,140.14,140.13,0.03]
[1740848991760,38.64964886,140.14,140.13,0.03]
[1740848992460,47.78534886,140.14,140.11,0.03]
[1740848992662,6.84,140.13,140.11,0.03]
[1740848993753,7.1367,140.12,140.11,0.03]
[1740848994960,13.9764,140.13,140.11,0.03]
[1740848996451,18.64964886,140.12,140.11,0.03]
[1740848997666,25.78634886,140.12,140.11,0.03]
[1740849003864,7.1367,140.12,140.11,0.03]
[1740849004968,13.9763,140.13,140.11,0.03]
[1740849009762,14.0393,140.13,140.11,0.03]
[1740849010750,25.78634886,140.12,140.11,0.03]
[1740849012855,7.1367,140.12,140.11,0.03]
[1740849016092,25.78634886,140.12,140.11,0.03]
[1740849024476,25.78634886,140.12,140.03,1.567]
[1740849024477,24.0,140.08,140.03,1.567]
[1740849024683,18.64964886,140.06,140.01,0.03]
[1740849026162,18.64964886,140.02,140.01,0.03]
[1740849026384,25.48964886,140.02,140.0,0.03]
[1740849027264,27.48964886,140.02,140.0,0.03]
[1740849027670,103.64964886,140.01,140.0,0.0001]
[1740849027985,29.52930055,140.01,140.0,0.0001]
[1740849028179,38.67160055,140.01,140.0,0.0001]
[1740849028381,39.9822635,140.01,140.0,0.0001]
[1740849029181,39.9822635,140.01,139.98,0.0001]
[1740849029182,2.0,139.99,139.98,0.0001]
[1740849029379,4.0,139.98,139.97,0.0001]
[1740849029577,32.8399635,139.98,139.97,0.0001]
[1740849030084,39.6799635,139.98,139.97,0.0001]
[1740849030387,46.8237635,139.98,139.97,0.0001]
[1740849034284,20.64964886,139.97,139.96,1e-08]
[1740849034590,38.9120067,139.97,139.96,1e-08]
[1740849035987,44.0563067,139.97,139.96,1e-08]
[1740849038090,46.0563067,139.97,139.96,1e-08]
[1740849039378,44.0563067,139.97,139.96,1e-08]
[1740849039789,37.9842635,139.97,139.96,1e-08]
[1740849041883,44.8242635,139.97,139.96,1e-08]
[1740849042089,42.8242635,139.97,139.96,1e-08]
[1740849044005,10.19031464,139.97,139.96,1e-08]
[1740849044177,8.15066295,139.97,139.96,1e-08]
[1740849044381,1.31066295,139.97,139.96,1e-08]
[1740849044690,20.0,139.98,139.96,2.00000001]
[1740849044891,19.5,139.98,139.96,4.00000001]
[1740849045113,6.84,140.01,139.96,4.00000001]
[1740849045288,3.50982932,140.03,139.98,9.855]
[1740849045483,6.84,140.04,139.99,4.0]
[1740849045684,6.84,140.05,140.01,2.0]
[1740849046520,25.78974886,140.06,140.01,4.0]
[1740849046813,13.9801,140.06,140.01,4.0]
[1740849047612,83.0,140.03,140.01,4.0]
[1740849048310,83.0,140.03,140.02,4.0]
[1740849049989,83.0,140.03,140.02,2.0]
[1740849050203,90.1413,140.03,140.01,2.0]
[1740849050506,90.1413,140.03,140.01,4.0]
[1740849050803,83.0,140.03,140.02,2.0]
[1740849051715,90.1413,140.03,140.02,2.0]
[1740849051883,7.1413,140.03,140.02,2.0]
[1740849052086,18.64964886,140.06,140.02,2.0]
[1740849052288,83.0,140.05,140.02,2.0]
[1740849052786,83.0,140.05,140.01,2.0]
[1740849053801,7.1408,140.04,140.02,2.0]
[1740849054899,7.1408,140.04,140.01,2.0]
[1740849055105,7.1408,140.04,140.02,2.0]
[1740849056802,7.1408,140.04,140.01,4.0]
[1740849057004,7.1408,140.04,140.01,2.0]
[1740849057206,7.1408,140.04,140.0,4.0]
[1740849057392,7.1408,140.04,140.02,2.0]
[1740849057702,83.0,140.03,140.02,2.0]
[1740849057905,7.1408,140.04,140.02,2.0]
[1740849058203,7.1403,140.05,140.02,2.0]
[1740849060289,6.84,140.06,140.02,4.0]
[1740849060481,83.0,140.05,140.03,2.0]
[1740849061198,83.0,140.05,140.04,4.0]
[1740849061600,83.0,140.05,140.04,5.5144]
[1740849061782,90.1384,140.09,140.06,2.0]
[1740849061982,83.0,140.08,140.06,4.0]
[1740849062191,83.0,140.08,140.04,10.0279]
[1740849062707,7.1392,140.07,140.06,2.0]
[1740849063308,7.1392,140.07,140.04,10.0279]
[1740849063907,7.1392,140.07,140.04,8.0279]
[1740849064206,7.1392,140.07,140.04,10.0279]
[1740849064396,7.1392,140.07,140.06,2.0]
[1740849065012,7.1392,140.07,140.04,12.0279]
[1740849066219,7.1392,140.07,140.06,2.0]
[1740849066417,7.1392,140.07,140.04,10.0279]
[1740849066616,17.8454,140.1,140.06,2.0]
[1740849066801,18.64964886,140.09,140.04,10.0279]
[1740849067004,18.64964886,140.09,140.02,2.0]
[1740849067196,83.0,140.06,140.03,2.0]
[1740849067388,83.0,140.05,140.03,2.0]
[1740849068311,83.0,140.05,140.03,4.0]
[1740849068513,83.0,140.05,140.04,2.0]
[1740849069608,90.1403,140.05,140.04,2.0]
[1740849069906,90.1403,140.05,140.03,4.0]
[1740849070107,90.1403,140.05,140.02,4.0]
[1740849070307,90.1403,140.05,140.02,2.0]
[1740849070498,90.1403,140.05,140.03,2.0]
[1740849070702,90.1403,140.05,140.02,2.0]
[1740849070902,90.1403,140.05,140.02,4.0]
[1740849071307,83.0,140.04,140.02,4.0]
[1740849071814,83.0,140.04,140.03,2.0]
[1740849072608,83.0,140.04,140.02,4.0]
[1740849072796,83.0,140.04,140.03,4.0]
[1740849073721,83.0,140.08,140.05,4.0]
[1740849073893,83.0,140.07,140.06,2.0]
[1740849074099,7.2015,140.09,140.06,2.0]
[1740849076911,25.0471,140.09,140.02,4.0]
[1740849077096,83.0,140.06,140.02,4.0]
[1740849077292,83.0,140.05,140.02,2.0]
[1740849077693,83.0,140.05,140.01,7.5622]
[1740849078512,83.0,140.05,139.99,2.0]
[1740849078513,20.0,140.01,139.99,2.0]
[1740849078716,83.0,140.0,139.99,2.0]
[1740849078918,20.0,140.01,139.99,2.0]
[1740849079418,20.0,140.01,139.98,2.0]
[1740849079621,83.0,139.99,139.97,2.03]
[1740849080418,90.1437,139.99,139.97,2.03]
[1740849081639,90.1437,139.99,139.97,0.03]
[1740849082102,90.1437,139.99,139.97,2.03]
[1740849082300,83.0,139.99,139.98,2.0]
[1740849083718,83.0,139.99,139.97,4.03]
[1740849084222,90.1433,139.99,139.97,0.03]
[1740849084399,83.0,139.98,139.97,0.03]
[1740849086518,90.1438,139.98,139.97,0.03]
[1740849087626,7.1438,139.98,139.97,0.03]
[1740849087920,25.79344886,139.98,139.97,0.03]
[1740849092429,29.3416126,139.98,139.97,0.03]
[1740849094821,8.23834351,140.0,139.97,0.03]
[1740849095031,7.1434,139.99,139.97,0.03]
[1740849095332,6.84,140.01,139.97,4.03]
[1740849095534,6.84,140.01,139.97,2.03]
[1740849095729,25.48964886,140.01,139.97,0.03]
[1740849096331,29.15696937,140.01,139.97,0.03]
[1740849096527,7.1428,140.0,139.97,0.03]
[1740849100338,7.1428,140.0,139.97,2.03]
[1740849101936,7.1428,140.0,139.97,0.03]
[1740849102135,7.1428,140.0,139.97,2.03]
[1740849103240,29.15696937,140.01,139.99,2.0]
[1740849103241,20.0,140.01,139.99,2.0]
[1740849103422,83.0,140.0,139.99,2.0]
[1740849105419,83.0,140.0,139.97,0.03]
[1740849105737,90.1428,140.0,139.99,2.0]
[1740849105935,90.1428,140.0,139.97,0.03]
[1740849105936,90.1428,140.0,139.97,2.03]
[1740849106441,90.1428,140.0,139.97,0.03]
[1740849106737,90.1428,140.0,139.97,2.03]
[1740849107124,90.2058,140.0,139.97,2.03]
[1740849108241,83.0,139.99,139.97,2.03]
[1740849112131,90.1434,139.99,139.97,2.03]
[1740849114149,83.0,139.98,139.97,2.03]
[1740849116955,83.0,139.98,139.97,0.03]
[1740849117145,90.1438,139.98,139.97,0.03]
[1740849117333,7.1438,139.98,139.97,0.03]
[1740849117843,43.71254886,140.0,139.97,0.03]
[1740849118749,43.71254886,140.0,139.97,2.03]
[1740849119660,43.71254886,140.0,139.97,0.03]
[1740849120037,43.71254886,140.0,139.97,2.03]
[1740849120557,43.71254886,140.0,139.97,0.03]
[1740849121133,20.0,139.98,139.97,0.03]
[1740849121941,27.1438,139.98,139.97,0.03]
[1740849122457,45.79344886,139.98,139.97,0.03]
[1740849122944,49.41487297,139.98,139.97,0.03]
[1740849130849,49.47787297,139.98,139.97,0.03]
[1740849134171,27.2068,139.98,139.97,0.03]
[1740849134366,0.063,139.98,139.97,0.03]
[1740849134666,0.063,139.98,139.97,4.03]
[1740849134873,0.063,139.98,139.97,11.7358]
[1740849147507,0.063,139.98,139.97,18.8801]
[1740849150697,0.063,140.0,139.99,4.0]
[1740849151682,0.063,140.0,139.99,11.1433]
[1740849159531,0.063,140.0,139.99,4.0]
[1740849160625,0.063,140.0,139.99,2.0]
[1740849160919,0.063,140.0,139.98,2.0]
[1740849161124,0.063,140.0,139.99,2.0]
[1740849161708,0.063,140.0,139.99,4.0]
[1740849162497,0.063,140.0,139.99,12.0384]
[1740849163212,0.063,140.0,139.99,19.1817]
[1740849163999,0.063,140.0,139.99,37.83134886]
[1740849166612,0.0001,140.0,139.99,120.13134886]
[1740849166917,0.063,140.05,140.04,12.0384]
[1740849167299,0.063,140.09,140.08,4.0]
[1740849169023,0.063,140.09,140.08,11.1387]
[1740849175423,0.063,140.09,140.08,4.0]
[1740849176235,0.063,140.09,140.08,2.0]
[1740849176829,0.063,140.09,140.08,4.0]
[1740849185930,0.063,140.09,140.08,11.1387]
[1740849189334,0.063,140.09,140.08,4.0]
[1740849189517,0.063,140.09,140.08,2.0]
[1740849189716,83.0,140.08,140.07,2.0]
[1740849190027,83.0,140.08,140.07,4.0]
[1740849192536,83.0,140.08,140.06,2.0]
[1740849192726,83.0,140.07,140.05,0.03]
[1740849192919,83.0,140.06,140.05,0.03]
[1740849194346,90.1397,140.06,140.05,0.03]
[1740849196437,98.5788,140.06,140.05,0.03]
[1740849196638,34.22844886,140.06,140.05,0.03]
[1740849196935,40.65414886,140.06,140.05,0.03]
[1740849198539,22.0045,140.06,140.05,0.03]
[1740849201539,40.71714886,140.06,140.05,0.03]
[1740849202840,20.0,140.03,139.99,2.0]
[1740849204946,7.1418,140.02,139.99,2.0]
[1740849205648,7.1418,140.02,139.98,4.0]
[1740849206450,83.0,140.01,139.98,4.0]
[1740849207544,83.0,140.01,139.99,2.0]
[1740849208045,83.0,140.01,140.0,2.0]
[1740849208243,83.0,140.01,140.0,4.0]
[1740849209443,34.29154886,140.06,140.02,2.0]
[1740849209444,83.0,140.05,140.02,2.0]
[1740849209625,83.0,140.04,140.02,2.0]
[1740849213354,90.1408,140.04,140.0,2.0]
[1740849213659,90.1408,140.04,140.01,2.0]
[1740849215154,83.0,140.03,140.01,2.0]
[1740849215735,83.0,140.03,140.01,4.0]
[1740849216354,83.0,140.03,140.02,2.0]
[1740849218954,83.0,140.03,140.0,4.0]
[1740849219161,90.1415,140.03,140.0,4.0]
[1740849219739,90.1415,140.03,139.99,4.0]
[1740849220043,83.0,140.02,140.0,2.0]
[1740849221066,83.0,140.02,140.01,2.0]
[1740849221963,83.0,140.02,140.01,4.0]
[1740849223865,83.0,140.02,140.0,2.0]
[1740849224165,90.1419,140.02,140.0,2.0]
[1740849225740,83.0,140.01,140.0,0.03]
[1740849229958,7.1419,140.02,140.0,0.03]
[1740849231971,18.64964886,140.03,140.0,0.03]
[1740849233172,22.22055991,140.03,140.0,0.03]
[1740849234279,18.64964886,140.01,140.0,0.03]
[1740849234466,25.44964886,140.01,140.0,0.03]
[1740849234968,6.8,140.01,140.0,0.03]
[1740849236683,13.9423,140.01,140.0,0.03]
[1740849244293,8.30161903,140.05,140.01,2.0]
[1740849244492,0.063,140.05,140.01,4.0]
[1740849245202,7.2033,140.05,140.01,4.0]
[1740849247811,83.0,140.02,140.01,4.0]
[1740849248186,83.0,140.02,140.01,2.0]
[1740849248383,83.0,140.02,140.0,2.03]
[1740849248687,7.1423,140.01,140.0,0.03]
[1740849251011,25.79194886,140.01,140.0,0.03]
[1740849254706,29.41787388,140.01,140.0,0.03]
[1740849255208,29.41787388,140.01,140.0,0.0001]
[1740849258716,37.65649291,140.01,140.0,0.0001]
[1740849263717,37.71949291,140.01,140.0,0.0001]
[1740849267416,7.2053,140.01,140.0,0.0001]
[1740849267613,0.063,140.01,140.0,0.0001]
[1740849268800,0.063,140.01,140.0,4.0001]
[1740849270722,0.063,140.01,140.0,11.7922]
[1740849270916,0.063,140.01,140.0,18.935]
[1740849272411,0.063,140.05,140.04,4.0]
[1740849272914,0.063,140.05,140.04,11.1408]
[1740849279918,0.063,140.05,140.04,4.0]
[1740849281931,0.063,140.05,140.03,4.0]
[1740849282235,0.063,140.05,140.03,2.0]
[1740849282438,0.063,140.05,140.02,2.0]
[1740849282613,83.0,140.04,140.0,4.0001]
[1740849282931,83.0,140.03,140.0,4.0001]
[1740849283134,83.0,140.03,140.01,2.0]
[1740849283334,83.0,140.03,140.0,4.0001]
[1740849283522,83.0,140.03,140.0,0.0001]
[1740849283719,7.1423,140.01,140.0,0.0001]
[1740849285541,18.64964886,140.03,140.0,0.0001]
[1740849286124,24.994,140.04,140.0,2.0001]
[1740849286340,83.0,140.03,140.0,2.0001]
[1740849286847,83.0,140.02,140.01,4.0]
[1740849288141,90.1418,140.02,140.01,4.0]
[1740849288338,90.1418,140.02,140.0,2.0001]
[1740849288544,90.1418,140.02,140.0,0.0001]
[1740849292449,83.0,140.01,140.0,0.0001]
[1740849292648,7.1418,140.02,140.0,0.0001]
[1740849293555,25.42964886,140.01,140.0,0.0001]
[1740849294436,13.9223,140.01,140.0,0.0001]
[1740849295668,6.78,140.01,140.0,0.0001]
[1740849295834,7.1416,140.03,140.0,2.0001]
[1740849297264,83.0,140.02,140.0,4.0001]
[1740849297451,83.0,140.02,140.01,4.0]
[1740849299038,83.0,140.02,140.01,2.0]
[1740849299464,83.063,140.02,140.01,2.0]
[1740849300542,90.2048,140.02,140.0,4.0001]
[1740849300750,90.2048,140.02,140.0,2.0001]
[1740849301147,90.2048,140.02,140.0,4.0001]
[1740849302274,83.063,140.02,140.0,2.0001]
[1740849302447,83.063,140.02,140.01,4.0]
[1740849303974,0.063,140.02,140.01,11.1423]
[1740849304166,0.063,140.02,140.01,12.7628]
[1740849305070,0.063,140.05,140.01,55.37294886]
[1740849305577,0.063,140.05,140.04,9.1408]
[1740849305881,0.063,140.05,140.04,2.0]
[1740849306175,0.063,140.05,140.04,4.0]
[1740849314487,0.063,140.05,140.04,2.0]
[1740849314700,0.063,140.05,140.03,4.0]
[1740849314910,0.063,140.05,140.03,2.0]
[1740849315086,0.063,140.05,140.03,4.0]
[1740849315890,0.063,140.05,140.04,2.0]
[1740849316093,0.063,140.05,140.04,4.0]
[1740849316593,0.063,140.05,140.04,11.1408]
[1740849317377,0.063,140.05,140.04,4.0]
[1740849319797,0.063,140.05,140.04,2.0]
[1740849320002,0.063,140.05,140.03,2.0]
[1740849320180,0.063,140.05,140.04,2.0]
[1740849320381,0.063,140.05,140.03,2.0]
[1740849320576,83.063,140.05,140.04,2.0]
[1740849320780,83.063,140.05,140.03,4.0]
[1740849321081,83.0,140.04,140.03,2.0]
[1740849321280,90.1408,140.04,140.03,2.0]
[1740849321791,90.1408,140.04,140.01,4.0]
[1740849322101,83.0,140.03,140.0,4.0001]
[1740849322895,83.0,140.03,140.02,2.0]
[1740849323386,83.0,140.03,140.02,2.03]
[1740849323597,83.0,140.03,140.02,4.03]
[1740849324096,90.1413,140.03,140.02,2.03]
[1740849324300,90.1413,140.03,140.02,0.03]
[1740849324479,7.1413,140.03,140.02,0.03]
[1740849325195,6.823,140.05,140.02,0.03]
[1740849325496,7.1408,140.04,140.02,0.03]
[1740849327406,18.64964886,140.03,140.02,0.03]
[1740849327585,20.31334886,140.03,140.02,0.0001]
[1740849327781,26.63954886,140.03,140.02,0.0001]
[1740849327976,34.87816789,140.03,140.02,0.0001]
[1740849328198,38.64964886,140.01,140.0,0.0001]
[1740849329695,45.79194886,140.01,140.0,0.0001]
[1740849330200,49.45281472,140.01,140.0,0.0001]
[1740849331699,27.1423,140.01,140.0,0.0001]
[1740849331913,7.142,140.02,140.0,0.0001]
[1740849332205,6.76,140.03,140.01,4.0]